fUSD/lending_fUSD_20240318
["ID","MTS","AMOUNT","RATE_DAILY","PERIOD"]
[319480804,1710799958201,-713.53,0.00024383,2]
[319480805,1710799958210,-500.0,0.00024383,2]
[319480806,1710799958220,-500.0,0.00024383,2]
[319480807,1710799958229,-1031.5,0.00024383,2]
[319480808,1710799958238,-500.0,0.00024383,2]
[319480809,1710799958248,-1487.73,0.00024383,2]
[319480810,1710799958257,-500.0,0.00024383,2]
[319480811,1710799958266,-1462.06,0.00024383,2]
[319480812,1710799958275,-538.36287718,0.00024383,2]
[319480813,1710799958284,-1113.91,0.00024383,2]
[319480814,1710799958293,-662.67,0.00024383,2]
[319480815,1710799958302,-1374.98,0.00024383,2]
[319480816,1710799958311,-500.0,0.00024383,2]
[319480817,1710799958320,-2453.88,0.00024383,2]
[319480818,1710799958329,-584.72,0.00024383,2]
[319480819,1710799958338,-436.78321853,0.00024383,2]
[319480820,1710799958348,-2831.64,0.00024383,2]
[319480821,1710799958357,-1349.99,0.00024383,2]
[319480822,1710799958367,-1580.15,0.00024383,2]
[319480823,1710799958377,-1466.21,0.00024383,2]
[319480824,1710799958387,-500.0,0.00024383,2]
[319480825,1710799958396,-500.0,0.00024383,2]
[319480826,1710799958407,-1118.72,0.00024383,2]
[319480827,1710799958416,-500.0,0.00024383,2]
[319480828,1710799958426,-606.91,0.00024383,2]
[319480829,1710799958435,-500.0,0.00024383,2]
[319480830,1710799958445,-1958.41,0.00024383,2]
[319480831,1710799958454,-605.4,0.00024383,2]
[319480832,1710799958465,-500.0,0.00024383,2]
[319480833,1710799958475,-500.0,0.00024383,2]
[319480834,1710799958484,-500.0,0.00024383,2]
[319480835,1710799958493,-942.42,0.00024383,2]
[319480836,1710799958502,-569.15,0.00024383,2]
[319480837,1710799958511,-500.0,0.00024383,2]
[319480838,1710799958521,-1400.41,0.00024383,2]
[319480839,1710799958530,-941.12,0.00024383,2]
[319480840,1710799958539,-500.0,0.00024383,2]
[319480841,1710799958548,-567.98773765,0.00024383,2]
[319480842,1710799958558,-500.0,0.00024383,2]
[319480843,1710799958566,-507.48609572,0.00024383,2]
[319480844,1710799958576,-559.93835509,0.00024383,2]
[319480845,1710799958585,-1781.44,0.00024383,2]
[319480846,1710799958598,-500.0,0.00024383,2]
[319480847,1710799958608,-713.68,0.00024383,2]
[319480848,1710799958617,-1912.95,0.00024383,2]
[319480849,1710799958626,-1203.57,0.00024383,2]
[319480850,1710799958635,-905.72,0.00024383,2]
[319480851,1710799958643,-500.0,0.00024383,2]
[319480852,1710799958653,-500.0,0.00024383,2]
[319480853,1710799958662,-4393.41,0.00024383,2]
[319480854,1710799958672,-2303.75,0.00024383,2]
[319480855,1710799958682,-500.0,0.00024383,2]
[319480856,1710799958693,-1144.14,0.00024383,2]
[319480857,1710799958702,-1401.22,0.00024383,2]
[319480858,1710799958710,-1229.49,0.00024383,2]
[319480859,1710799958719,-511.29,0.00024383,2]
[319480860,1710799958728,-500.0,0.00024383,2]
[319480861,1710799958737,-1432.28,0.00024383,2]
[319480862,1710799958746,-500.0,0.00024383,2]
[319480863,1710799958754,-516.82,0.00024383,2]
[319480864,1710799958764,-500.0,0.00024383,2]
[319480865,1710799958773,-1305.33,0.00024383,2]
[319480866,1710799958781,-581.47,0.00024383,2]
[319480867,1710799958790,-678.53,0.00024383,2]
[319480868,1710799958799,-1022.21,0.00024383,2]
[319480869,1710799958808,-737.52,0.00024383,2]
[319480870,1710799958817,-500.0,0.00024383,2]
[319480871,1710799958827,-500.0,0.00024383,2]
[319480872,1710799958837,-1654.91,0.00024383,2]
[319480873,1710799958846,-500.0,0.00024383,2]
[319480874,1710799958855,-745.31,0.00024383,2]
[319480875,1710799958865,-500.0,0.00024383,2]
[319480876,1710799958875,-7202.93,0.00024383,2]
[319480877,1710799958884,-20689.66,0.00024383,2]
[319480878,1710799958893,-2992.02,0.00024383,2]
[319480879,1710799958902,-500.0,0.00024383,2]
[319480880,1710799958911,-638.22,0.00024383,2]
[319480881,1710799958921,-1157.8,0.00024383,2]
[319480882,1710799958931,-1110.24,0.00024383,2]
[319480883,1710799958943,-1088.66,0.00024383,2]
[319480884,1710799958952,-500.0,0.00024383,2]
[319480885,1710799958963,-1090.38,0.00024383,2]
[319480886,1710799958972,-1367.92,0.00024383,2]
[319480887,1710799958981,-500.0,0.00024383,2]
[319480888,1710799958990,-8212.3,0.00024383,2]
[319480889,1710799958999,-500.0,0.00024383,2]
[319480890,1710799959008,-1716.46,0.00024383,2]
[319480891,1710799959017,-500.0,0.00024383,2]
[319480892,1710799959026,-1412.21,0.00024383,2]
[319480893,1710799959035,-500.0,0.00024383,2]
[319480894,1710799959044,-605.07,0.00024383,2]
[319480895,1710799959053,-622.92,0.00024383,2]
[319480896,1710799959062,-738.47,0.00024383,2]
[319480897,1710799959071,-6843.13,0.00024383,2]
[319480898,1710799959079,-642.05,0.00024383,2]
[319480899,1710799959088,-2375.9,0.00024383,2]
[319480900,1710799959097,-720.26,0.00024383,2]
[319480901,1710799959106,-1814.94,0.00024383,2]
[319480902,1710799959115,-500.0,0.00024383,2]
[319480903,1710799959124,-500.0,0.00024383,2]
[319480904,1710799959133,-7701.15,0.00024383,2]
[319480905,1710799959142,-2621.03,0.00024383,2]
[319480906,1710799959151,-1283.55,0.00024383,2]
[319480907,1710799959161,-70618.05,0.00024383,2]
[319480908,1710799959171,-867.51,0.00024383,2]
[319480909,1710799959180,-933.88,0.00024383,2]
[319480910,1710799959191,-651.4,0.00024383,2]
[319480911,1710799959200,-1968.24,0.00024383,2]
[319480912,1710799959210,-1507.28,0.00024383,2]
[319480913,1710799959219,-15625.12,0.00024383,2]
[319480914,1710799959228,-2930.24,0.00024383,2]
[319480915,1710799959237,-500.0,0.00024383,2]
[319480916,1710799959247,-386.07,0.00024383,2]
[319480917,1710799959256,-500.0,0.00024383,2]
[319480918,1710799959265,-908.19,0.00024383,2]
[319480919,1710799959275,-836.99,0.00024383,2]
[319480920,1710799959284,-1649.1,0.00024383,2]
[319480921,1710799959293,-500.0,0.00024383,2]
[319480922,1710799959302,-1000.59,0.00024383,2]
[319480923,1710799959311,-3638.93,0.00024383,2]
[319480924,1710799959321,-234.94111108,0.00024383,2]
[319480925,1710799959330,-500.0,0.00024383,2]
[319480926,1710799959339,-2240.25,0.00024383,2]
[319480927,1710799959348,-500.0,0.00024383,2]
[319480928,1710799959357,-500.0,0.00024383,2]
[319480929,1710799959366,-503.67903247,0.00024383,2]
[319480930,1710799959376,-876.56,0.00024383,2]
[319480931,1710799959385,-1827.91,0.00024383,2]
[319480932,1710799959395,-500.0,0.00024383,2]
[319480933,1710799959404,-2226.67,0.00024383,2]
[319480934,1710799959413,-4659.24,0.00024383,2]
[319480935,1710799959422,-500.0,0.00024383,2]
[319480936,1710799959431,-500.0,0.00024383,2]
[319480937,1710799959441,-500.0,0.00024383,2]
[319480938,1710799959451,-3729.26,0.00024383,2]
[319480939,1710799959459,-500.0,0.00024383,2]
[319480940,1710799959468,-3606.56,0.00024383,2]
[319480941,1710799959478,-500.0,0.00024383,2]
[319480942,1710799959487,-1207.02,0.00024383,2]
[319480943,1710799959496,-963.32,0.00024383,2]
[319480944,1710799959505,-28470.72,0.00024383,2]
[319480945,1710799959514,-2980.27,0.00024383,2]
[319480946,1710799959523,-1000.56,0.00024383,2]
[319480947,1710799959532,-500.0,0.00024383,2]
[319480948,1710799959541,-333.96,0.00024383,2]
[319480949,1710799959550,-1014.54,0.00024383,2]
[319480950,1710799959560,-500.0,0.00024383,2]
[319480951,1710799959569,-1007.55,0.00024383,2]
[319480952,1710799959578,-500.0,0.00024383,2]
[319480953,1710799959588,-12991.16,0.00024383,2]
[319480954,1710799959599,-825.64,0.00024383,2]
[319480955,1710799959608,-1967.21,0.00024383,2]
[319480956,1710799959617,-500.0,0.00024383,2]
[319480957,1710799959626,-500.0,0.00024383,2]
[319480958,1710799959637,-989.42,0.00024383,2]
[319480959,1710799959647,-3061.78,0.00024383,2]
[319480960,1710799959656,-3350.06,0.00024383,2]
[319480961,1710799959665,-495.4793197,0.00024383,2]
[319480962,1710799959674,-1418.83,0.00024383,2]
[319480963,1710799959683,-578.72,0.00024383,2]
[319480964,1710799959693,-500.0,0.00024383,2]
[319480965,1710799959702,-1283.92,0.00024383,2]
[319480966,1710799959711,-1017.47,0.00024383,2]
[319480967,1710799959721,-500.0,0.00024383,2]
[319480968,1710799959731,-500.0,0.00024383,2]
[319480969,1710799959740,-793.34,0.00024383,2]
[319480970,1710799959750,-500.0,0.00024383,2]
[319480971,1710799959759,-544.38,0.00024383,2]
[319480972,1710799959769,-1383.54,0.00024383,2]
[319480973,1710799959779,-3058.85,0.00024383,2]
[319480974,1710799959788,-500.0,0.00024383,2]
[319480975,1710799959798,-4863.68,0.00024383,2]
[319480976,1710799959808,-500.0,0.00024383,2]
[319480977,1710799959817,-3420.67,0.00024383,2]
[319480978,1710799959826,-1467.98,0.00024383,2]
[319480979,1710799959835,-500.0,0.00024383,2]
[319480980,1710799959845,-500.0,0.00024383,2]
[319480981,1710799959854,-909.74,0.00024383,2]
[319480982,1710799959863,-500.0,0.00024383,2]
[319480983,1710799959872,-500.0,0.00024383,2]
[319480984,1710799959881,-616.14,0.00024383,2]
[319480985,1710799959890,-500.0,0.00024383,2]
[319480986,1710799959899,-1472.05,0.00024383,2]
[319480987,1710799959908,-1391.49,0.00024383,2]
[319480988,1710799959917,-500.0,0.00024383,2]
[319480989,1710799959926,-1026.28,0.00024383,2]
[319480990,1710799959935,-500.0,0.00024383,2]
[319480991,1710799959945,-501.4,0.00024383,2]
[319480992,1710799959954,-500.0,0.00024383,2]
[319480993,1710799959963,-1044.22,0.00024383,2]
[319480994,1710799959972,-736.5,0.00024383,2]
[319480995,1710799959982,-500.0,0.00024383,2]
[319480996,1710799959991,-1726.54,0.00024383,2]
[319480997,1710799960000,-2302.64,0.00024383,2]
[319480998,1710799960010,-1165.44,0.00024383,2]
[319480999,1710799960019,-12189.86,0.00024383,2]
[319481000,1710799960029,-1375.05,0.00024383,2]
[319481001,1710799960038,-1530.51,0.00024383,2]
[319481002,1710799960048,-1316.33,0.00024383,2]
[319481003,1710799960057,-728.8,0.00024383,2]
[319481004,1710799960066,-515.52,0.00024383,2]
[319481005,1710799960075,-1294.68,0.00024383,2]
[319481006,1710799960085,-500.0,0.00024383,2]
[319481007,1710799960094,-184.79499063,0.00024383,2]
[319481008,1710799960103,-1545.51,0.00024383,2]
[319481009,1710799960112,-1925.65,0.00024383,2]
[319481010,1710799960121,-571.49961672,0.00024383,2]
[319481011,1710799960130,-6062.83,0.00024383,2]
[319481012,1710799960139,-1677.75,0.00024383,2]
[319481013,1710799960148,-500.0,0.00024383,2]
[319481014,1710799960157,-630.76,0.00024383,2]
[319481015,1710799960166,-697.84,0.00024383,2]
[319481016,1710799960175,-1539.77,0.00024383,2]
[319481017,1710799960185,-1111.24,0.00024383,2]
[319481018,1710799960194,-500.0,0.00024383,2]
[319481019,1710799960203,-500.0,0.00024383,2]
[319481020,1710799960213,-1154.87,0.00024383,2]
[319481021,1710799960223,-500.0,0.00024383,2]
[319481022,1710799960232,-2083.43,0.00024383,2]
[319481023,1710799960242,-500.0,0.00024383,2]
[319481024,1710799960251,-873.95,0.00024383,2]
[319481025,1710799960261,-572.93,0.00024383,2]
[319481026,1710799960270,-1218.6,0.00024383,2]
[319481027,1710799960279,-500.0,0.00024383,2]
[319481028,1710799960289,-500.0,0.00024383,2]
[319481029,1710799960298,-762.41,0.00024383,2]
[319481030,1710799960307,-805.44,0.00024383,2]
[319481031,1710799960316,-2278.77,0.00024383,2]
[319481032,1710799960326,-2011.92,0.00024383,2]
[319481033,1710799960335,-500.0,0.00024383,2]
[319481034,1710799960344,-2062.21,0.00024383,2]
[319481035,1710799960353,-971.93,0.00024383,2]
[319481036,1710799960363,-500.0,0.00024383,2]
[319481037,1710799960372,-768.87,0.00024383,2]
[319481038,1710799960381,-500.0,0.00024383,2]
[319481039,1710799960390,-1606.59,0.00024383,2]
[319481040,1710799960400,-500.0,0.00024383,2]
[319481041,1710799960409,-1340.16,0.00024383,2]
[319481042,1710799960418,-500.0,0.00024383,2]
[319481043,1710799960427,-1007.76,0.00024383,2]
[319481044,1710799960436,-4162.89,0.00024383,2]
[319481045,1710799960445,-1051.06,0.00024383,2]
[319481046,1710799960456,-500.0,0.00024383,2]
[319481047,1710799960466,-699.3,0.00024383,2]
[319481048,1710799960475,-518.73,0.00024383,2]
[319481049,1710799960484,-1416.75,0.00024383,2]
[319481050,1710799960493,-1220.37,0.00024383,2]
[319481051,1710799960503,-500.0,0.00024383,2]
[319481052,1710799960512,-1475.69,0.00024383,2]
[319481053,1710799960521,-1579.78,0.00024383,2]
[319481054,1710799960530,-960.76,0.00024383,2]
[319481055,1710799960540,-685.26,0.00024383,2]
[319481056,1710799960549,-500.0,0.00024383,2]
[319481057,1710799960558,-500.0,0.00024383,2]
[319481058,1710799960568,-598.24,0.00024383,2]
[319481059,1710799960578,-3689.48,0.00024383,2]
[319481060,1710799960592,-1883.02,0.00024383,2]
[319481061,1710799960602,-500.0,0.00024383,2]
[319481062,1710799960611,-725.93,0.00024383,2]
[319481063,1710799960621,-500.0,0.00024383,2]
[319481064,1710799960631,-500.0,0.00024383,2]
[319481065,1710799960640,-582.85,0.00024383,2]
[319481066,1710799960650,-597.67,0.00024383,2]
[319481067,1710799960660,-945.24,0.00024383,2]
[319481068,1710799960669,-3264.27,0.00024383,2]
[319481069,1710799960678,-1114.59,0.00024383,2]
[319481070,1710799960688,-1101.09,0.00024383,2]
[319481071,1710799960698,-3081.47,0.00024383,2]
[319481072,1710799960707,-1090.35,0.00024383,2]
[319481073,1710799960716,-15199.29,0.00024383,2]
[319481074,1710799960725,-545.12,0.00024383,2]
[319481075,1710799960734,-525.35,0.00024383,2]
[319481076,1710799960744,-524.35,0.00024383,2]
[319481077,1710799960753,-926.2,0.00024383,2]
[319481078,1710799960762,-738.48,0.00024383,2]
[319481079,1710799960772,-500.0,0.00024383,2]
[319481080,1710799960781,-661.43,0.00024383,2]
[319481081,1710799960791,-521.01,0.00024383,2]
[319481082,1710799960800,-1479.1,0.00024383,2]
[319481083,1710799960810,-3873.88,0.00024383,2]
[319481084,1710799960819,-2791.36,0.00024383,2]
[319481085,1710799960829,-500.0,0.00024383,2]
[319481086,1710799960839,-8062.17,0.00024383,2]
[319481087,1710799960849,-567.9,0.00024383,2]
[319481088,1710799960858,-1469.15,0.00024383,2]
[319481089,1710799960868,-1368.38,0.00024383,2]
[319481090,1710799960878,-500.0,0.00024383,2]
[319481091,1710799960887,-578.84,0.00024383,2]
[319481092,1710799960897,-500.0,0.00024383,2]
[319481093,1710799960906,-500.0,0.00024383,2]
[319481094,1710799960915,-500.0,0.00024383,2]
[319481095,1710799960924,-625.58,0.00024383,2]
[319481096,1710799960933,-500.0,0.00024383,2]
[319481097,1710799960943,-659.71,0.00024383,2]
[319481098,1710799960952,-500.0,0.00024383,2]
[319481099,1710799960961,-1165.69,0.00024383,2]
[319481100,1710799960970,-522.17,0.00024383,2]
[319481101,1710799960979,-500.0,0.00024383,2]
[319481102,1710799960989,-547.31,0.00024383,2]
[319481103,1710799960998,-500.0,0.00024383,2]
[319481104,1710799961007,-1931.5,0.00024383,2]
[319481105,1710799961016,-500.0,0.00024383,2]
[319481106,1710799961025,-1852.16,0.00024383,2]
[319481107,1710799961034,-500.0,0.00024383,2]
[319481108,1710799961043,-5194.45,0.00024383,2]
[319481109,1710799961052,-4366.56,0.00024383,2]
[319481110,1710799961061,-2626.87,0.00024383,2]
[319481111,1710799961070,-340.8,0.00024383,2]
[319481112,1710799961079,-643.53,0.00024383,2]
[319481113,1710799961089,-4566.9,0.00024383,2]
[319481114,1710799961098,-1560.19,0.00024383,2]
[319481115,1710799961108,-574.42,0.00024383,2]
[319481116,1710799961117,-7356.66,0.00024383,2]
[319481117,1710799961126,-500.0,0.00024383,2]
[319481118,1710799961135,-2335.37,0.00024383,2]
[319481119,1710799961145,-1433.97,0.00024383,2]
[319481120,1710799961155,-1302.8,0.00024383,2]
[319481121,1710799961164,-12149.23,0.00024383,2]
[319481122,1710799961173,-500.0,0.00024383,2]
[319481123,1710799961182,-596.59,0.00024383,2]
[319481124,1710799961192,-976.06,0.00024383,2]
[319481125,1710799961202,-773.37,0.00024383,2]
[319481126,1710799961211,-500.0,0.00024383,2]
[319481127,1710799961220,-500.0,0.00024383,2]
[319481128,1710799961229,-12163.47,0.00024383,2]
[319481129,1710799961239,-500.0,0.00024383,2]
[319481130,1710799961248,-500.0,0.00024383,2]
[319481131,1710799961257,-1666.88,0.00024383,2]
[319481132,1710799961266,-1040.95,0.00024383,2]
[319481133,1710799961275,-4014.74,0.00024383,2]
[319481134,1710799961285,-676.8,0.00024383,2]
[319481135,1710799961295,-500.0,0.00024383,2]
[319481136,1710799961304,-2937.18,0.00024383,2]
[319481137,1710799961314,-798.37,0.00024383,2]
[319481138,1710799961323,-500.0,0.00024383,2]
[319481139,1710799961334,-514.53,0.00024383,2]
[319481140,1710799961346,-630.18,0.00024383,2]
[319481141,1710799961355,-1092.32,0.00024383,2]
[319481142,1710799961365,-500.0,0.00024383,2]
[319481143,1710799961374,-4002.95,0.00024383,2]
[319481144,1710799961383,-500.0,0.00024383,2]
[319481145,1710799961392,-3032.32,0.00024383,2]
[319481146,1710799961402,-1825.34,0.00024383,2]
[319481147,1710799961412,-713.44,0.00024383,2]
[319481148,1710799961423,-2538.34,0.00024383,2]
[319481149,1710799961433,-500.0,0.00024383,2]
[319481150,1710799961444,-500.0,0.00024383,2]
[319481151,1710799961454,-1704.18,0.00024383,2]
[319481152,1710799961464,-2264.59,0.00024383,2]
[319481153,1710799961474,-500.0,0.00024383,2]
[319481154,1710799961483,-999.91,0.00024383,2]
[319481155,1710799961493,-500.0,0.00024383,2]
[319481156,1710799961503,-1455.99,0.00024383,2]
[319481157,1710799961512,-500.0,0.00024383,2]
[319481158,1710799961522,-500.0,0.00024383,2]
[319481159,1710799961531,-1138.58,0.00024383,2]
[319481160,1710799961541,-951.86,0.00024383,2]
[319481161,1710799961550,-780.67,0.00024383,2]
[319481162,1710799961561,-1309.57,0.00024383,2]
[319481163,1710799961572,-500.0,0.00024383,2]
[319481164,1710799961582,-500.0,0.00024383,2]
[319481165,1710799961594,-500.0,0.00024383,2]
[319481166,1710799961604,-500.0,0.00024383,2]
[319481167,1710799961614,-4539.82,0.00024383,2]
[319481168,1710799961624,-4994.79,0.00024383,2]
[319481169,1710799961634,-500.0,0.00024383,2]
[319481170,1710799961644,-1485.77,0.00024383,2]
[319481171,1710799961653,-849.91,0.00024383,2]
[319481172,1710799961662,-7034.98,0.00024383,2]
[319481173,1710799961673,-1794.57,0.00024383,2]
[319481174,1710799961683,-500.0,0.00024383,2]
[319481175,1710799961693,-2385.09,0.00024383,2]
[319481176,1710799961702,-500.0,0.00024383,2]
[319481177,1710799961712,-750.9,0.00024383,2]
[319481178,1710799961721,-500.0,0.00024383,2]
[319481179,1710799961731,-1615.86,0.00024383,2]
[319481180,1710799961741,-6038.49,0.00024383,2]
[319481181,1710799961750,-1135.58,0.00024383,2]
[319481182,1710799961760,-979.41,0.00024383,2]
[319481183,1710799961769,-6456.64,0.00024383,2]
[319481184,1710799961778,-942.12,0.00024383,2]
[319481185,1710799961788,-1504.81,0.00024383,2]
[319481186,1710799961798,-500.0,0.00024383,2]
[319481187,1710799961807,-500.0,0.00024383,2]
[319481188,1710799961816,-854.48,0.00024383,2]
[319481189,1710799961825,-508.22,0.00024383,2]
[319481190,1710799961834,-662.67,0.00024383,2]
[319481191,1710799961843,-2520.23,0.00024383,2]
[319481192,1710799961853,-40338.6,0.00024383,2]
[319481193,1710799961863,-1192.63,0.00024383,2]
[319481194,1710799961873,-2259.16,0.00024383,2]
[319481195,1710799961882,-1120.6,0.00024383,2]
[319481196,1710799961892,-4121.83,0.00024383,2]
[319481197,1710799961901,-2157.68,0.00024383,2]
[319481198,1710799961911,-500.0,0.00024383,2]
[319481199,1710799961921,-2358.27,0.00024383,2]
[319481200,1710799961931,-289.17470659,0.00024383,2]
[319481201,1710799961941,-6231.23,0.00024383,2]
[319481202,1710799961951,-1000.0,0.00024454,2]
[319481203,1710799961960,-151.07221851,0.0002446,2]
[319481204,1710799961969,-2000.0,0.000245,2]
[319481205,1710799961979,-33846.97919062,0.000245,2]
[319481206,1710799961989,-792.92436257,0.0002455,2]
[319481207,1710799961998,-178.07557792,0.0002455,2]
[319481208,1710799962007,-215.0,0.0002457,2]
[319481209,1710799962017,-210.0,0.0002457,2]
[319481210,1710799962026,-214.0,0.0002457,2]
[319481211,1710799962035,-204.0,0.0002457,2]
[319481212,1710799962044,-155.18569217,0.00024599,2]
[319481213,1710799962054,-5850.1559099,0.00024607,2]
[319481214,1710799962062,-361.05,0.00024651,2]
[319481215,1710799962072,-150.0,0.00024656,2]
[319481216,1710799962081,-500.0,0.00024657,2]
[319481217,1710799962090,-500.0,0.00024657,2]
[319481218,1710799962100,-754.65,0.00024657,2]
[319481219,1710799962109,-500.0,0.00024657,2]
[319481220,1710799962118,-1183.48,0.00024657,2]
[319481221,1710799962127,-500.0,0.00024657,2]
[319481222,1710799962136,-500.0,0.00024657,2]
[319481223,1710799962145,-562.98237507,0.00024657,2]
[319481224,1710799962155,-500.0,0.00024657,2]
[319481225,1710799962164,-500.0,0.00024657,2]
[319481226,1710799962173,-841.06,0.00024657,2]
[319481227,1710799962182,-1050.21,0.00024657,2]
[319481228,1710799962193,-603.24,0.00024657,2]
[319481229,1710799962203,-864.95,0.00024657,2]
[319481230,1710799962212,-595.50914919,0.00024657,2]
[319481231,1710799962221,-801.98,0.00024657,2]
[319481232,1710799962230,-2023.13,0.00024657,2]
[319481233,1710799962239,-2257.25,0.00024657,2]
[319481234,1710799962249,-794.11,0.00024657,2]
[319481235,1710799962258,-1080.91,0.00024657,2]
[319481236,1710799962268,-753.34,0.00024657,2]
[319481237,1710799962277,-500.0,0.00024657,2]
[319481238,1710799962286,-841.73,0.00024657,2]
[319481239,1710799962295,-2219.16,0.00024657,2]
[319481240,1710799962304,-637.28,0.00024657,2]
[319481241,1710799962395,-822.95,0.00024657,2]
[319481242,1710799962408,-532.03,0.00024657,2]
[319481243,1710799962418,-500.0,0.00024657,2]
[319481244,1710799962427,-500.0,0.00024657,2]
[319481245,1710799962437,-666.77,0.00024657,2]
[319481246,1710799962446,-500.0,0.00024657,2]
[319481247,1710799962456,-2410.75,0.00024657,2]
[319481248,1710799962465,-1083.62,0.00024657,2]
[319481249,1710799962474,-1096.76,0.00024657,2]
[319481250,1710799962484,-1153.52,0.00024657,2]
[319481251,1710799962493,-500.0,0.00024657,2]
[319481252,1710799962503,-253.83974158,0.00024657,2]
[319481253,1710799962512,-1579.95,0.00024657,2]
[319481254,1710799962522,-1079.02,0.00024657,2]
[319481255,1710799962532,-500.0,0.00024657,2]
[319481256,1710799962546,-500.0,0.00024657,2]
[319481257,1710799962556,-500.0,0.00024657,2]
[319481258,1710799962566,-604.92,0.00024657,2]
[319481259,1710799962577,-500.0,0.00024657,2]
[319481260,1710799962587,-2112.17,0.00024657,2]
[319481261,1710799962599,-788.06,0.00024657,2]
[319481262,1710799962609,-965.6,0.00024657,2]
[319481263,1710799962620,-567.24,0.00024657,2]
[319481264,1710799962630,-1057.53,0.00024657,2]
[319481265,1710799962641,-500.0,0.00024657,2]
[319481266,1710799962651,-1346.77,0.00024657,2]
[319481267,1710799962661,-712.98,0.00024657,2]
[319481268,1710799962673,-624.81,0.00024657,2]
[319481269,1710799962684,-1820.6,0.00024657,2]
[319481270,1710799962695,-500.0,0.00024657,2]
[319481271,1710799962705,-750.79,0.00024657,2]
[319481272,1710799962715,-628.64,0.00024657,2]
[319481273,1710799962725,-787.89,0.00024657,2]
[319481274,1710799962735,-593.51,0.00024657,2]
[319481275,1710799962745,-750.42,0.00024657,2]
[319481276,1710799962755,-622.98,0.00024657,2]
[319481277,1710799962765,-1628.79,0.00024657,2]
[319481278,1710799962775,-500.0,0.00024657,2]
[319481279,1710799962785,-500.0,0.00024657,2]
[319481280,1710799962796,-830.73,0.00024657,2]
[319481281,1710799962806,-3414.73,0.00024657,2]
[319481282,1710799962815,-837.33,0.00024657,2]
[319481283,1710799962825,-500.0,0.00024657,2]
[319481284,1710799962835,-1594.83,0.00024657,2]
[319481285,1710799962844,-1565.76,0.00024657,2]
[319481286,1710799962854,-500.0,0.00024657,2]
[319481287,1710799962864,-500.0,0.00024657,2]
[319481288,1710799962874,-2289.86,0.00024657,2]
[319481289,1710799962884,-2327.27,0.00024657,2]
[319481290,1710799962895,-1043.46,0.00024657,2]
[319481291,1710799962905,-1166.79,0.00024657,2]
[319481292,1710799962915,-549.91,0.00024657,2]
[319481293,1710799962925,-568.66,0.00024657,2]
[319481294,1710799962935,-771.19,0.00024657,2]
[319481295,1710799962944,-2753.66,0.00024657,2]
[319481296,1710799962954,-1513.08,0.00024657,2]
[319481297,1710799962964,-1842.48,0.00024657,2]
[319481298,1710799962973,-221.44,0.00024657,2]
[319481299,1710799962983,-1460.74,0.00024657,2]
[319481300,1710799962992,-646.91412614,0.00024657,2]
[319481301,1710799963002,-942.07,0.00024657,2]
[319481302,1710799963012,-895.46,0.00024657,2]
[319481303,1710799963021,-1989.79,0.00024657,2]